bitfinex/quotes_SOLUSD_20250721
["timestamp","ask_amount","ask_price","bid_price","bid_amount"]
[1753121379662,0.06,196.49,196.48,15.54721499]
[1753121380787,0.06,196.49,196.48,16.20721499]
[1753121386581,0.06,196.49,196.48,69.45189896]
[1753121386773,0.06,196.52,196.49,16.78468397]
[1753121387099,0.06,196.52,196.51,10.45763845]
[1753121388382,0.06,196.52,196.51,11.11763845]
[1753121388580,0.06,196.52,196.51,32.99112197]
[1753121388780,0.1,196.53,196.52,16.78468397]
[1753121388998,0.1,196.53,196.52,28.15568567]
[1753121389386,0.1,196.53,196.52,27.49568567]
[1753121389685,0.1,196.53,196.52,28.15568567]
[1753121389880,0.06,196.6,196.52,28.15568567]
[1753121389881,0.06,196.6,196.55,26.0]
[1753121390077,0.06,196.6,196.59,10.45763845]
[1753121390683,0.06,196.6,196.59,5.08672872]
[1753121390977,0.74,196.6,196.59,10.45763845]
[1753121391182,0.74,196.6,196.59,15.54436717]
[1753121391183,0.06,196.6,196.59,15.54436717]
[1753121391608,0.06,196.6,196.59,10.45763845]
[1753121392105,0.74,196.6,196.58,10.45763845]
[1753121392310,0.69580874,196.6,196.57,10.45763845]
[1753121392600,0.68,196.59,196.58,10.45763845]
[1753121392901,0.06,196.6,196.58,10.45763845]
[1753121393122,0.68,196.59,196.58,10.45763845]
[1753121393280,0.68,196.59,196.57,10.45763845]
[1753121393481,0.63584109,196.59,196.53,0.66]
[1753121393682,0.68,196.58,196.53,16.78468397]
[1753121393897,0.68,196.57,196.56,10.45763845]
[1753121394094,11.13763845,196.57,196.5,10.45763845]
[1753121394304,1.31593813,196.56,196.51,10.45763845]
[1753121394488,11.09357658,196.56,196.5,10.45763845]
[1753121394805,0.68,196.55,196.52,10.45763845]
[1753121395003,0.69580874,196.6,196.53,10.45763845]
[1753121395190,0.68,196.57,196.52,15.54607863]
[1753121395386,0.68,196.56,196.52,15.54607863]
[1753121395580,0.63590578,196.57,196.52,15.54607863]
[1753121395784,0.68,196.56,196.52,15.54607863]
[1753121396510,0.68,196.56,196.53,10.45763845]
[1753121398098,0.68,196.56,196.51,32.33095299]
[1753121398300,0.68,196.55,196.51,32.33095299]
[1753121398502,0.68,196.55,196.52,10.45763845]
[1753121399203,11.13763845,196.59,196.53,11.11763845]
[1753121399419,1.31587343,196.58,196.53,10.45763845]
[1753121399589,0.63587343,196.58,196.53,10.45763845]
[1753121399911,0.68,196.57,196.53,10.45763845]
[1753121400386,0.68,196.57,196.51,21.87331454]
[1753121400585,0.06,196.6,196.5,26.66]
[1753121400586,11.77357658,196.56,196.5,31.08901711]
[1753121400910,11.13763845,196.55,196.5,31.08901711]
[1753121401096,0.63600284,196.54,196.5,31.08901711]
[1753121401284,0.7,196.53,196.5,31.08901711]
[1753121401487,0.7,196.56,196.52,10.45763845]
[1753121401699,0.7,196.58,196.53,10.45763845]
[1753121401902,36.44,196.59,196.56,10.45763845]
[1753121402295,0.06,196.6,196.54,17.03776227]
[1753121402494,0.06,196.6,196.59,10.45763845]
[1753121402891,0.06,196.6,196.59,11.14763845]
[1753121403384,0.06,196.6,196.59,27.93232242]
[1753121403585,0.06,196.6,196.59,53.93232242]
[1753121404404,0.1,196.65,196.6,5.08646998]
[1753121404584,0.1,196.65,196.63,36.45763845]
[1753121404788,0.1,196.65,196.62,10.45763845]
[1753121405204,0.1,196.65,196.64,10.45763845]
[1753121405718,0.1,196.65,196.63,10.45763845]
[1753121406017,0.1,196.65,196.6,10.45763845]
[1753121406018,0.7,196.64,196.6,10.45763845]
[1753121406314,0.7,196.63,196.6,10.45763845]
[1753121406485,0.73564708,196.65,196.6,10.45763845]
[1753121406688,0.7,196.63,196.6,10.45763845]
[1753121406909,0.7,196.63,196.6,5.08641312]
[1753121407121,0.73564708,196.65,196.6,15.54405157]
[1753121407289,11.15763845,196.64,196.59,10.45763845]
[1753121407491,10.45763845,196.61,196.55,10.45763845]
[1753121407804,0.7,196.61,196.55,0.69]
[1753121407997,0.7,196.61,196.57,10.45763845]
[1753121408194,0.7,196.6,196.57,10.45763845]
[1753121408707,1.33584109,196.59,196.53,16.78468397]
[1753121408915,1.33584109,196.59,196.55,10.45763845]
[1753121409494,0.63584109,196.59,196.57,10.45763845]
[1753121409820,1.33577641,196.61,196.57,10.45763845]
[1753121410020,0.63574407,196.62,196.58,11.14763845]
[1753121410202,7.04841174,196.63,196.59,10.45763845]
[1753121410398,11.15763845,196.62,196.54,5.08798141]
[1753121410614,12.1342949,196.63,196.55,10.45763845]
[1753121410615,1.33577641,196.61,196.55,10.45763845]
[1753121410814,0.7,196.6,196.55,15.54536393]
[1753121411119,0.63577641,196.61,196.57,10.45763845]
[1753121411990,7.04841174,196.63,196.59,10.45763845]
[1753121412222,7.74841174,196.63,196.59,10.45763845]
[1753121412403,7.74841174,196.63,196.58,0.6]
[1753121412404,10.45763845,196.61,196.58,0.6]
[1753121412610,0.63580874,196.6,196.58,0.6]
[1753121412910,0.7,196.59,196.55,10.45763845]
[1753121413226,0.7,196.58,196.56,10.45763845]
[1753121413394,0.63580874,196.6,196.56,10.45763845]
[1753121413596,0.7,196.59,196.56,10.45763845]
[1753121414016,0.7,196.58,196.55,10.45763845]
[1753121414815,11.79354423,196.57,196.5,0.62519932]
[1753121415023,0.7,196.56,196.5,11.08283777]
[1753121415192,0.63597049,196.55,196.51,10.45763845]
[1753121415504,1.33597049,196.55,196.51,10.45763845]
[1753121416406,0.7,196.54,196.5,0.62519932]
[1753121416601,11.09367366,196.53,196.5,0.62519932]
[1753121416813,0.7,196.52,196.5,0.62519932]
[1753121417116,1.33609994,196.51,196.5,0.62519932]
[1753121417897,0.63606757,196.52,196.5,0.62519932]
[1753121418100,1.33606757,196.52,196.5,0.62519932]
[1753121418296,0.63606757,196.52,196.5,0.62519932]
[1753121418608,0.7,196.51,196.5,0.62519932]
[1753121418812,11.15763845,196.51,196.5,0.62519932]
[1753121419015,0.7,196.51,196.5,0.62519932]
[1753121420704,16.246438,196.51,196.5,0.62519932]
[1753121421815,16.246438,196.51,196.5,0.03]
[1753121422031,5.78879955,196.51,196.5,0.03]
[1753121422518,16.246438,196.51,196.5,0.03]
[1753121422902,16.78468397,196.5,196.46,0.03]
[1753121423110,27.24232242,196.47,196.46,0.03]
[1753121423727,27.94232242,196.47,196.46,0.03]
[1753121424022,32.4034,196.44,196.42,0.03]
[1753121424189,47.55399745,196.43,196.42,0.03]
[1753121424519,48.25399745,196.43,196.42,0.03]
[1753121424704,53.34486951,196.43,196.42,0.03]
[1753121426330,0.636359,196.43,196.42,0.03]
[1753121426512,36.44,196.43,196.42,10.48763845]
[1753121427002,36.44,196.43,196.42,16.26876969]
[1753121427224,36.44,196.43,196.42,15.57876969]
[1753121427526,36.44,196.43,196.42,10.48763845]
[1753121427836,36.44,196.43,196.42,16.26876969]
[1753121429631,36.44,196.46,196.42,16.26876969]
[1753121429836,36.44,196.46,196.45,10.45763845]
[1753121430136,37.07616469,196.49,196.45,0.69]
[1753121430321,37.07616469,196.49,196.45,11.14763845]
[1753121430521,37.07616469,196.49,196.47,10.45763845]
[1753121431624,0.69,196.48,196.43,5.09083752]
[1753121431823,1.32622944,196.47,196.43,10.45763845]
[1753121432123,0.69,196.46,196.43,10.45763845]
[1753121432326,37.07629422,196.45,196.42,10.48763845]
[1753121432541,37.76629422,196.45,196.42,10.48763845]
[1753121433719,37.76629422,196.45,196.43,0.6]
[1753121434819,0.69,196.44,196.43,0.6]
[1753121436050,37.07629422,196.45,196.43,0.6]
[1753121436223,36.44,196.44,196.43,0.6]
[1753121436920,37.13,196.44,196.43,0.6]
[1753121437229,36.44,196.44,196.43,0.6]
[1753121437830,36.44,196.44,196.43,11.05763845]
[1753121438836,36.44,196.44,196.43,0.6]
[1753121440523,52.67825135,196.44,196.43,0.6]
[1753121441020,53.31457796,196.44,196.43,0.6]
[1753121441223,141.81457796,196.44,196.43,0.6]
[1753121441525,141.81457796,196.44,196.42,0.03]
[1753121441526,88.5,196.43,196.42,0.03]
[1753121441732,99.64763845,196.43,196.42,0.03]
[1753121441952,116.43232242,196.43,196.42,0.03]
[1753121442159,26.0,196.41,196.4,0.03]
[1753121442457,73.55406225,196.41,196.4,0.03]
[1753121442637,74.24406225,196.41,196.4,0.03]
[1753121443138,96.12013667,196.41,196.4,1e-08]
[1753121445466,37.0964238,196.41,196.4,1e-08]
[1753121446747,53.3354527,196.41,196.4,1e-08]
[1753121447874,37.0964238,196.41,196.4,1e-08]
[1753121448644,42.87781425,196.41,196.4,1e-08]
[1753121451048,37.7864238,196.41,196.4,1e-08]
[1753121451355,37.7864238,196.41,196.32,0.62889332]
[1753121451356,16.78468397,196.4,196.32,0.62889332]
[1753121451541,10.45763845,196.35,196.32,0.62889332]
[1753121451741,37.09648861,196.39,196.32,0.62889332]
[1753121451742,47.55428915,196.34,196.32,0.62889332]
[1753121451975,36.46,196.33,196.32,0.62889332]
[1753121452259,37.15,196.33,196.32,0.62889332]
[1753121452469,46.91763845,196.33,196.32,0.62889332]
[1753121454644,36.46,196.33,196.32,1.28889332]
[1753121455366,46.91763845,196.33,196.32,0.62889332]
[1753121455542,36.46,196.33,196.32,0.62889332]
[1753121455741,46.91763845,196.33,196.32,0.62889332]
[1753121455943,47.55432158,196.33,196.32,0.62889332]
[1753121456342,37.09668313,196.33,196.32,0.62889332]
[1753121456554,47.55432158,196.33,196.32,0.62889332]
[1753121457743,0.63668313,196.33,196.32,0.62889332]
[1753121457946,88.5,196.39,196.32,0.62889332]
[1753121457947,36.46,196.34,196.32,16.8402563]
[1753121458177,36.46,196.34,196.33,11.11763845]
[1753121459573,36.46,196.34,196.33,16.21110353]
[1753121459949,36.46,196.34,196.33,5.09346508]
[1753121460348,36.46,196.34,196.33,16.21110353]
[1753121462176,36.46,196.34,196.33,15.55110353]
[1753121462653,36.46,196.34,196.33,16.24110353]
[1753121464166,88.5,196.43,196.34,16.78468397]
[1753121464348,0.6363914,196.42,196.39,10.45763845]
[1753121464554,10.45763845,196.44,196.4,11.14763845]
[1753121464555,0.63632661,196.44,196.4,11.14763845]
[1753121464768,0.63632661,196.44,196.41,0.69]
[1753121464769,36.46,196.43,196.41,0.69]
[1753121465480,1.3163914,196.42,196.37,15.54990657]
[1753121465793,0.68,196.41,196.37,5.09226812]
[1753121466004,37.09645621,196.4,196.37,5.09226812]
[1753121466167,0.63645621,196.4,196.35,16.78468397]
[1753121466372,36.46,196.4,196.37,10.45763845]
[1753121466567,36.46,196.4,196.36,11.14763845]
[1753121466768,36.46,196.4,196.38,10.45763845]
[1753121466990,36.46,196.4,196.38,11.14763845]
[1753121467182,36.46,196.4,196.38,7.21994219]
[1753121467680,36.46,196.4,196.38,12.31197293]
[1753121468087,36.46,196.4,196.39,7.21994219]
[1753121469177,36.46,196.4,196.39,0.69]
[1753121469579,36.46,196.4,196.39,7.21994219]
[1753121470298,36.46,196.4,196.39,12.31185114]
[1753121471181,36.46,196.43,196.39,12.31185114]
[1753121471382,36.46,196.43,196.39,5.78190895]
[1753121471582,36.46,196.43,196.4,6.52994219]
[1753121472786,36.46,196.43,196.4,11.62147701]
[1753121472983,0.06,196.41,196.4,11.62147701]
[1753121473281,0.74,196.41,196.39,0.03]
[1753121473485,37.14,196.4,196.39,0.03]
[1753121474005,36.46,196.4,196.39,0.03]
[1753121474992,36.46,196.4,196.39,11.65185114]
[1753121475189,36.46,196.4,196.39,12.34185114]
[1753121475588,0.06,196.41,196.39,12.34185114]
[1753121475781,0.06,196.41,196.4,7.21994219]
[1753121477104,0.06,196.41,196.4,11.62159188]
[1753121478297,0.06,196.41,196.4,12.31159188]
[1753121479298,0.74,196.41,196.39,0.03]
[1753121479595,36.44,196.4,196.39,0.03]
[1753121480309,0.06,196.41,196.39,12.34185114]
[1753121480474,0.06,196.41,196.4,6.52994219]
[1753121480682,0.06,196.41,196.4,7.21994219]
[1753121480884,0.06,196.41,196.4,12.31159188]
[1753121481195,0.06,196.41,196.4,5.78164969]
[1753121481497,0.06,196.41,196.4,12.31159188]
[1753121482295,0.06,196.41,196.4,29.09627585]
[1753121482782,0.06,196.41,196.4,55.09627585]
[1753121482984,0.06,196.41,196.4,11.62159188]
[1753121483293,1e-08,196.41,196.4,61.62621804]
[1753121483494,0.06,196.44,196.43,42.78468397]
[1753121483704,0.06,196.44,196.43,49.31462616]
[1753121483908,0.06,196.44,196.43,50.00462616]
[1753121484875,0.06,196.44,196.43,55.09549822]
[1753121485082,1e-08,196.44,196.43,55.09549822]
[1753121485389,0.06,196.49,196.48,42.78468397]
[1753121485584,0.06,196.49,196.48,49.5682484]
[1753121485799,0.06,196.49,196.48,50.00462616]
[1753121485986,0.06,196.49,196.48,32.52994219]
[1753121486779,0.74,196.49,196.42,26.69]
[1753121486978,0.63619706,196.48,196.44,6.52994219]
[1753121487181,0.68,196.47,196.43,6.52994219]
[1753121487385,0.68,196.46,196.42,37.62106703]
[1753121487801,0.68,196.46,196.42,6.52994219]
[1753121488009,0.68,196.46,196.4,6.52994219]
[1753121488010,1.31629422,196.45,196.4,6.52994219]
[1753121488188,0.63629422,196.45,196.41,6.52994219]
[1753121488498,0.63629422,196.45,196.39,5.1218659]
[1753121488499,1.31622944,196.47,196.43,6.52994219]
[1753121488703,1.31622944,196.47,196.42,6.52994219]
[1753121488899,0.63622944,196.47,196.41,7.21994219]
[1753121489200,7.84617163,196.47,196.41,12.31110536]
[1753121489803,7.84617163,196.47,196.41,11.62110536]
[1753121490108,7.84617163,196.47,196.41,5.09116317]
[1753121490283,7.84617163,196.47,196.41,11.62110536]
[1753121490783,1.31622944,196.47,196.41,11.62110536]
[1753121491013,7.84617163,196.47,196.41,11.62110536]
[1753121491514,1.31622944,196.47,196.42,6.52994219]
[1753121492501,1.31622944,196.47,196.41,5.09116317]
[1753121492502,0.7,196.46,196.41,11.62110536]
[1753121492710,7.86623641,196.45,196.4,11.62156638]
[1753121492899,0.7,196.44,196.4,11.62156638]
[1753121493102,0.7,196.44,196.41,6.52994219]
[1753121493288,0.63629422,196.45,196.42,6.52994219]
[1753121493491,0.63629422,196.45,196.39,0.03]
[1753121493492,7.22994219,196.44,196.39,0.03]
[1753121493698,1.336359,196.43,196.39,0.03]
[1753121494210,0.7,196.42,196.39,0.03]
[1753121494414,0.6364238,196.41,196.39,0.03]
[1753121495216,1.3364238,196.41,196.39,0.03]
[1753121495712,0.7,196.4,196.39,0.03]
[1753121496085,37.0764238,196.41,196.39,0.03]
[1753121496515,37.7764238,196.41,196.39,0.03]
[1753121496818,0.7,196.4,196.39,0.03]
[1753121498000,7.22994219,196.4,196.39,0.03]
[1753121498813,20.33489188,196.4,196.39,0.03]
[1753121502305,7.16636599,196.41,196.39,0.03]
[1753121502508,36.44,196.4,196.39,0.03]
[1753121503922,36.44,196.4,196.39,7.22994219]
[1753121504104,124.94,196.42,196.39,7.22994219]
[1753121504311,124.94,196.42,196.39,6.55994219]
[1753121504698,0.6364238,196.41,196.39,0.03]
[1753121504899,1.3364238,196.41,196.39,0.03]
[1753121505311,0.6364238,196.41,196.39,0.03]
[1753121505949,1.3364238,196.41,196.39,0.03]
[1753121506430,7.22994219,196.4,196.39,0.03]
[1753121506605,12.32159188,196.4,196.39,0.03]
[1753121506808,13.97589188,196.4,196.39,0.03]
[1753121507107,37.29051804,196.4,196.39,0.03]
[1753121507925,73.73051804,196.4,196.39,0.03]
[1753121509011,78.95860467,196.4,196.39,0.03]
[1753121510916,43.88594969,196.4,196.39,0.03]
[1753121511122,50.41589188,196.4,196.39,0.03]
[1753121512810,43.88594969,196.4,196.39,0.03]
[1753121513232,50.41589188,196.4,196.39,0.03]
[1753121513535,43.88594969,196.4,196.39,0.03]
[1753121513724,50.41589188,196.4,196.39,0.03]
[1753121516610,73.73051804,196.4,196.39,0.03]
[1753121517010,67.20057585,196.4,196.39,0.03]
[1753121517535,73.73051804,196.4,196.39,0.03]
[1753121518122,60.67063366,196.4,196.39,1e-08]
[1753121518329,73.73051804,196.4,196.39,1e-08]
[1753121518721,42.78468397,196.36,196.35,0.03]
[1753121518937,86.39121202,196.36,196.35,0.03]
[1753121519136,87.09121202,196.36,196.33,0.59571281]
[1753121519419,6.52994219,196.34,196.33,0.59571281]
[1753121519629,43.60659289,196.34,196.33,0.59571281]
[1753121519841,49.39979855,196.34,196.33,0.59571281]
[1753121520253,66.18448252,196.34,196.33,0.59571281]
[1753121520546,59.65454033,196.34,196.33,0.59571281]
[1753121520747,75.39979855,196.34,196.33,0.59571281]
[1753121520930,0.6366507,196.34,196.33,0.59571281]
[1753121521125,36.44,196.34,196.33,0.59571281]
[1753121521325,36.44,196.34,196.33,6.36917789]
[1753121521637,36.44,196.34,196.33,1.27571281]
[1753121522033,36.44,196.34,196.33,0.59571281]
[1753121523041,48.77314785,196.34,196.33,0.59571281]
[1753121524021,5.72962869,196.35,196.33,0.59571281]
[1753121524221,36.44,196.34,196.33,0.59571281]
[1753121525159,36.44,196.34,196.33,1.27571281]
[1753121525530,36.44,196.34,196.33,0.59571281]
[1753121528955,0.40486755,224.18,196.33,7.805655]
[1753121528956,0.71,196.42,196.33,7.805655]
[1753121529131,0.6364238,196.41,196.36,6.52994219]
[1753121529454,0.636359,196.43,196.4,6.52994219]
[1753121529666,0.69622944,196.47,196.42,6.52994219]
[1753121529826,0.06,196.47,196.45,6.52994219]
[1753121530028,0.06,196.47,196.46,6.52994219]
[1753121530240,0.06,196.47,196.46,7.20994219]
[1753121530441,0.06,196.47,196.46,0.68]
[1753121530645,0.06,196.47,196.44,6.52994219]
[1753121531037,0.06,196.47,196.45,0.68]
[1753121531631,37.05626183,196.46,196.42,0.68]
[1753121531850,43.58620402,196.46,196.4,6.52994219]
[1753121532053,44.29620402,196.46,196.4,6.52994219]
[1753121532745,6.52994219,196.45,196.39,7.20994219]
[1753121532940,37.05632661,196.44,196.39,7.20994219]
[1753121533140,5.09087206,196.43,196.38,6.52994219]
[1753121533342,37.0563914,196.42,196.38,7.20994219]
[1753121533662,6.52994219,196.39,196.33,7.125655]
[1753121533853,6.52994219,196.37,196.33,0.59571281]
[1753121534026,0.63658586,196.36,196.33,0.59571281]
[1753121534233,36.42,196.39,196.35,6.52994219]
[1753121534454,36.42,196.39,196.37,6.52994219]
[1753121534653,36.42,196.39,196.36,6.52994219]
[1753121534849,0.63652103,196.38,196.34,7.20994219]
[1753121535051,0.63652103,196.38,196.33,0.59571281]
[1753121535052,6.52994219,196.37,196.33,0.59571281]
[1753121535362,5.09294626,196.35,196.33,0.59571281]
[1753121536058,37.05658586,196.36,196.34,0.68]
[1753121536234,36.42,196.36,196.35,0.68]
[1753121536559,48.75262909,196.36,196.33,0.59571281]
[1753121536754,7.87656047,196.35,196.33,0.59571281]
[1753121536937,1.34661828,196.35,196.33,0.59571281]
[1753121537127,38.33314785,196.34,196.32,0.03]
[1753121537327,43.58662532,196.33,196.32,0.03]
[1753121537540,44.29662532,196.33,196.32,0.03]
[1753121537829,44.29662532,196.33,196.29,0.03]
[1753121537830,42.78468397,196.3,196.29,0.03]
[1753121538039,26.0,196.26,196.21,0.03]
[1753121538347,68.94994219,196.26,196.21,0.03]
[1753121538539,69.65994219,196.26,196.21,0.03]
[1753121538932,86.44462616,196.26,196.25,1e-08]
[1753121539133,86.44462616,196.26,196.21,0.03]
[1753121539134,47.88074471,196.23,196.22,1e-08]
[1753121539330,95.41288272,196.23,196.22,1e-08]
[1753121539545,96.12288272,196.23,196.22,1e-08]
[1753121541944,37.05700759,196.23,196.22,1e-08]
[1753121542257,46.89513042,196.23,196.22,1e-08]
[1753121543265,47.53213801,196.23,196.22,1e-08]
[1753121543438,37.05700759,196.23,196.22,1e-08]
[1753121543638,47.53213801,196.23,196.22,1e-08]
[1753121544067,53.33819875,196.23,196.22,1e-08]
[1753121544553,47.53213801,196.23,196.22,1e-08]
[1753121544854,53.33819875,196.23,196.22,1e-08]
[1753121547359,70.12288272,196.23,196.22,1e-08]
[1753121547860,53.33819875,196.23,196.22,1e-08]
[1753121548370,47.53213801,196.23,196.22,1e-08]
[1753121548554,53.33819875,196.23,196.22,1e-08]
[1753121548863,42.15306833,196.23,196.22,1e-08]
[1753121549170,53.33819875,196.23,196.22,1e-08]
[1753121549835,70.12288272,196.23,196.22,1e-08]
[1753121550457,68.17306833,196.23,196.22,1e-08]
[1753121550672,73.55213801,196.23,196.22,1e-08]
[1753121551048,78.64819875,196.23,196.22,1e-08]
[1753121551464,79.35819875,196.23,196.22,1e-08]
[1753121551963,73.55213801,196.23,196.22,1e-08]
[1753121552265,78.64819875,196.23,196.22,1e-08]
[1753121552770,79.35819875,196.23,196.22,1e-08]
[1753121553150,78.64819875,196.23,196.22,1e-08]
[1753121553347,73.55213801,196.23,196.22,1e-08]
[1753121553745,79.35819875,196.23,196.22,1e-08]
[1753121554168,78.64819875,196.23,196.22,1e-08]
[1753121554969,79.35819875,196.23,196.22,1e-08]
[1753121555576,52.64819875,196.23,196.22,1e-08]
[1753121556477,53.35819875,196.23,196.22,1e-08]
[1753121556765,52.64819875,196.23,196.22,1e-08]
[1753121557955,53.35819875,196.23,196.22,1e-08]
[1753121560071,52.64819875,196.23,196.22,1e-08]
[1753121560454,0.63697513,196.24,196.22,0.66000001]
[1753121560775,36.44,196.23,196.22,1e-08]
[1753121561482,36.44,196.23,196.22,0.66000001]
[1753121561657,36.44,196.23,196.22,5.75632046]
[1753121561971,36.44,196.23,196.22,0.66000001]
[1753121563271,46.90728085,196.23,196.22,1e-08]
[1753121565765,36.44,196.23,196.22,0.66000001]
[1753121565963,37.07700759,196.23,196.22,0.66000001]
[1753121566987,36.44,196.23,196.22,0.66000001]
[1753121567454,0.63691022,196.26,196.22,11.12728086]
[1753121567660,36.44,196.25,196.23,0.66]
[1753121567981,36.44,196.25,196.24,0.66]
[1753121568775,36.44,196.25,196.22,5.09619044]
[1753121568776,36.44,196.25,196.22,0.66000001]
[1753121568958,36.44,196.25,196.23,0.66]
[1753121569290,36.44,196.25,196.24,0.66]
[1753121569500,36.44,196.26,196.24,11.12728085]
[1753121569668,0.06,196.27,196.25,12.3189414]
[1753121569987,0.06,196.27,196.26,11.12728085]
[1753121571781,0.06,196.27,196.26,16.22256261]
[1753121573182,11.16376946,196.39,196.3,16.78468397]
[1753121573389,36.44,196.38,196.31,0.66]
[1753121573568,36.44,196.38,196.32,10.46728085]
[1753121573766,0.63655344,196.37,196.34,5.09320566]
[1753121574083,10.46728085,196.35,196.32,0.66]
[1753121574269,46.90728085,196.35,196.32,0.66]
[1753121574670,0.6366507,196.34,196.32,0.66]
[1753121574880,0.6366507,196.34,196.29,5.09446091]
[1753121574881,11.10393155,196.34,196.29,5.09446091]
[1753121575088,10.46728085,196.31,196.27,0.66]
[1753121575284,36.44,196.31,196.27,0.66]
[1753121575470,36.44,196.31,196.28,0.66]
[1753121575672,36.44,196.31,196.29,0.66]
[1753121575878,11.10406128,196.3,196.25,0.66]
[1753121576079,10.46728085,196.29,196.25,0.66]
[1753121576290,10.46728085,196.29,196.23,10.46728085]
[1753121576291,10.46728085,196.29,196.26,0.66]
[1753121576588,36.42,196.28,196.23,10.46728085]
[1753121576791,10.46728085,196.27,196.23,0.66]
[1753121577094,10.46728085,196.27,196.24,0.66]
[1753121577393,47.52412617,196.28,196.24,0.66]
[1753121577572,47.52412617,196.28,196.25,0.66]
[1753121577996,37.05684532,196.28,196.25,0.66]
[1753121578196,47.52412617,196.28,196.25,0.66]
[1753121578576,10.46728085,196.27,196.23,26.0]
[1753121578786,0.63691022,196.26,196.23,26.66]
[1753121578988,0.63691022,196.26,196.23,0.66]
[1753121579186,36.42,196.25,196.22,1e-08]
[1753121579494,36.42,196.25,196.22,0.66000001]
[1753121580277,46.88728085,196.25,196.22,0.66000001]
[1753121580495,11.10425598,196.24,196.22,1e-08]
[1753121580874,10.46728085,196.23,196.22,1e-08]
[1753121581295,11.17728085,196.23,196.22,1e-08]
[1753121581994,11.15728085,196.23,196.22,1e-08]
[1753121582193,42.25334159,196.23,196.22,1e-08]
[1753121583177,46.88728085,196.23,196.22,1e-08]
[1753121583778,37.05700759,196.23,196.22,1e-08]
[1753121583978,47.52428844,196.23,196.22,1e-08]
[1753121584600,53.31034918,196.23,196.22,1e-08]
[1753121585300,49.38890019,196.23,196.22,1e-08]
[1753121586378,0.63700759,196.23,196.22,1e-08]
[1753121586598,37.05700759,196.23,196.22,1e-08]
[1753121586799,44.29283945,196.23,196.22,1e-08]
[1753121586984,37.05700759,196.23,196.22,1e-08]
[1753121587184,48.69890019,196.23,196.22,1e-08]
[1753121587389,49.38890019,196.23,196.22,1e-08]
[1753121587899,44.29283945,196.23,196.22,1e-08]
[1753121588109,43.60283945,196.23,196.22,1e-08]
[1753121588284,37.05700759,196.23,196.22,1e-08]
[1753121588610,43.60283945,196.23,196.22,1e-08]
[1753121588802,42.84306833,196.23,196.22,1e-08]
[1753121589001,49.38890019,196.23,196.22,1e-08]
[1753121589313,37.05700759,196.23,196.22,1e-08]
[1753121589609,43.60283945,196.23,196.22,1e-08]
[1753121590000,37.05700759,196.23,196.22,1e-08]
[1753121590193,0.63694267,196.25,196.22,0.69000001]
[1753121590504,36.44,196.24,196.23,0.69]
[1753121590704,36.44,196.24,196.22,1e-08]
[1753121590881,0.63700759,196.23,196.22,1e-08]
[1753121592007,7.18283945,196.23,196.22,1e-08]
[1753121592301,0.63700759,196.23,196.22,1e-08]
[1753121592503,36.44,196.24,196.22,1e-08]
[1753121592504,36.44,196.24,196.22,0.69000001]
[1753121594007,36.44,196.24,196.23,0.69]
[1753121594205,36.44,196.24,196.22,1e-08]
[1753121594895,0.63694267,196.25,196.22,1e-08]
[1753121595214,0.06,196.27,196.24,6.54583186]
[1753121595408,0.06,196.27,196.26,6.54583186]
[1753121596044,0.06,196.27,196.25,7.23583186]
[1753121596508,0.06,196.27,196.26,5.78528176]
[1753121597598,0.06,196.27,196.26,12.33111362]
[1753121599720,44.35270963,196.27,196.22,1e-08]
[1753121599895,6.54583186,196.23,196.22,1e-08]
[1753121600082,42.96583186,196.23,196.22,1e-08]
[1753121600291,44.29283945,196.23,196.22,1e-08]
[1753121601791,37.05700759,196.23,196.22,1e-08]
[1753121602110,0.06,196.27,196.22,7.23583187]
[1753121602302,36.42,196.26,196.24,6.54583186]
[1753121602504,36.42,196.26,196.25,7.23583186]